fUST/lending_fUST_20250327
["ID","MTS","AMOUNT","RATE_DAILY","PERIOD"]
[356712617,1743005149158,-195.2343068,0.00019412,2]
[356712618,1743005227098,-158.93447198,0.00019407,2]
[356712619,1743005248158,-416.19093979,0.00019402,2]
[356712628,1743005432604,-575.0,0.00019443,2]
[356712629,1743005432614,-336.69817149,0.00019443,2]
[356712630,1743005432624,-24900.0,0.00024811,2]
[356712631,1743005432634,-834.83451184,0.00026453,2]
[356712632,1743005432644,-160.0,0.00026453,2]
[356712633,1743005432653,-493.61618424,0.00028814,2]
[356712634,1743005432663,-1510.64555456,0.00028914,2]
[356712949,1743005443734,-400.0,0.00028157,2]
[356712950,1743005443744,-334.1433418,0.00028171,2]
[356712951,1743005443755,-1955.56659804,0.00028914,2]
[356712952,1743005443764,-500.0,0.00029207,2]
[356712953,1743005443774,-500.0,0.00029207,2]
[356712954,1743005443784,-500.0,0.00029207,2]
[356712956,1743005443794,-500.0,0.00029207,2]
[356712958,1743005443803,-500.0,0.00029207,2]
[356712960,1743005443813,-500.0,0.00029207,2]
[356712961,1743005443822,-500.0,0.00029207,2]
[356712963,1743005443832,-500.0,0.00029207,2]
[356712966,1743005443842,-159.25628287,0.00029207,2]
[356712968,1743005443852,-500.0,0.00029207,2]
[356712970,1743005443861,-500.0,0.00029207,2]
[356712971,1743005443871,-500.0,0.00029207,2]
[356712972,1743005443880,-298.9879323,0.00029207,2]
[356712993,1743006228815,1500.39,0.0003,30]
[356712994,1743006285049,5000.0,0.0003,30]
[356712997,1743006436196,-472.75714951,0.00024,2]
[356712998,1743006438094,-500.0,0.00017617,2]
[356712999,1743006438116,-282.20696446,0.00024,2]
[356713000,1743006441100,-1062.7087424,0.00024,2]
[356713001,1743006451087,-275.15500628,0.00024,2]
[356713004,1743006520922,2931.35871981,0.0002,120]
[356713010,1743006547109,-300.0,0.00016999,2]
[356713011,1743006547130,-250.0,0.00017,2]
[356713012,1743006547152,-28576.10109797,0.00017,2]
[356713036,1743006632700,-262.55988165,0.00017,2]
[356713037,1743006632711,-300.0,0.00019788,2]
[356713038,1743006632721,-6907.17213735,0.00024,2]
[356713039,1743006632731,-198.84818064,0.0002445,2]
[356713040,1743006632741,-160.0,0.00024469,2]
[356713041,1743006632750,-300.0,0.0002471,2]
[356713042,1743006632760,-5000.0,0.00024711,2]
[356713043,1743006632771,-500.0,0.00028283,2]
[356713044,1743006632781,-418.40181814,0.00028746,2]
[356713045,1743006632790,-834.83451184,0.00028771,2]
[356713046,1743006632800,-3504.584,0.00029979,2]
[356713047,1743006632810,-961.1101483,0.00030138,7]
[356713048,1743006632821,-500.0,0.00031116,2]
[356713049,1743006632831,-500.0,0.00031116,2]
[356713050,1743006632841,-500.0,0.00031116,2]
[356713051,1743006632851,-406.58403143,0.00031116,2]
[356713052,1743006632861,-210.86494753,0.00031116,2]
[356713053,1743006632871,-5323.626261,0.00031117,2]
[356713054,1743006632883,-19576.373739,0.00031117,2]
[356713055,1743006632893,-500.0,0.00031795,3]
[356713056,1743006632903,-500.0,0.0003252,3]
[356713057,1743006632913,-300.0,0.00032768,2]
[356713058,1743006632923,-1000.0,0.00032794,5]
[356713059,1743006632932,-500.0,0.000354,5]
[356713060,1743006632944,-2672.41597332,0.0003579,2]
[356713061,1743006632954,-4333.80599281,0.0003579,2]
[356713062,1743006632967,-119.43915197,0.0003579,2]
[356713063,1743006632977,-173.9623762,0.000358,2]
[356713064,1743006632987,-500.0,0.00035873,5]
[356713065,1743006632996,-600.0,0.00035878,2]
[356713066,1743006633006,-252.86,0.0003588,5]
[356713067,1743006633017,-1954.84971481,0.00035889,2]
[356713068,1743006633027,-4801.50600444,0.00035889,2]
[356713069,1743006633038,-151.0,0.00035889,2]
[356713070,1743006633048,-500.0,0.00035889,15]
[356713071,1743006633058,-500.0,0.00035889,15]
[356713072,1743006633068,-153.76122207,0.00035889,15]
[356713073,1743006633078,-85000.40846994,0.0003589,3]
[356713086,1743006638757,-151.0,0.00035889,2]
[356713087,1743006638767,-10300.50000005,0.0003589,3]
[356713088,1743006638778,-22085.89572562,0.0003589,3]
[356713217,1743006643864,-4297.7195645,0.0003589,3]
[356713218,1743006643918,-302.0,0.0003589,3]
[356713234,1743006646888,-525.15196725,0.0003579,7]
[356713238,1743006646911,-2942.44778785,0.0003589,3]
[356713536,1743006684236,312.0,0.000246,120]
[356713537,1743006931522,-834.83451184,0.0002458,2]
[356713538,1743006931544,-418.40181814,0.0002458,2]
[356713539,1743006931566,-160.0,0.00024596,2]
[356713540,1743006931586,-1572.61847601,0.00024611,2]
[356713541,1743006931607,-14.14519401,0.00027527,2]
[356713542,1743007307817,-968.63650019,0.00046825,120]
[356713543,1743007307844,-1705.64,0.00046825,120]
[356713544,1743007307870,-1705.64,0.00046825,120]
[356713545,1743007307896,-1705.64,0.00046825,120]
[356713546,1743007307921,-1705.64,0.00046825,120]
[356713547,1743007307946,-1705.64,0.00046825,120]
[356713548,1743007307972,-1705.64,0.00046825,120]
[356713549,1743007307998,-1705.64,0.00046825,120]
[356713550,1743007308023,-547.31939907,0.00046825,120]
[356713551,1743007308048,-1705.64,0.00046825,120]
[356713552,1743007308075,-1705.64,0.00046825,120]
[356713553,1743007308101,-1705.64,0.00046825,120]
[356713554,1743007308125,-2282.37223513,0.00046825,120]
[356713555,1743007308151,-1705.64,0.00046825,120]
[356713556,1743007308177,-1705.64,0.00046825,120]
[356713557,1743007308203,-1705.64,0.00046825,120]
[356713558,1743007308229,-1705.64,0.00046825,120]
[356713559,1743007308255,-679.36797675,0.00046825,120]
[356713560,1743007308281,-1705.64,0.00046825,120]
[356713561,1743007308306,-1705.64,0.00046825,120]
[356713562,1743007308331,-1727.50607244,0.00046825,30]
[356713563,1743007308357,-1705.64,0.00046825,120]
[356713564,1743007308382,-1705.64,0.00046825,120]
[356713565,1743007308406,-6215.84537379,0.00046825,120]
[356713566,1743007308431,-1705.64,0.00046825,120]
[356713567,1743007308456,-769.46467424,0.00046825,32]
[356713568,1743007308481,-240.82074905,0.00046825,120]
[356713569,1743007308506,-1705.64,0.00046825,120]
[356713570,1743007308531,-1935.47778543,0.00046825,60]
[356713571,1743007308556,-1705.64,0.00046825,120]
[356713572,1743007308586,-1705.64,0.00046825,120]
[356713573,1743007308613,-1705.64,0.00046825,120]
[356713574,1743007308639,-1705.75336998,0.00046825,120]
[356713575,1743007308664,-1468.08426475,0.00046825,120]
[356713576,1743007308690,-522.65683901,0.00046825,30]
[356713577,1743007308714,-1099.49122721,0.00046825,60]
[356713578,1743007308739,-456.45271863,0.00046825,32]
[356713579,1743007308763,-935.08542769,0.00046825,120]
[356713580,1743007308788,-2000.0,0.00046825,120]
[356713581,1743007308812,-240.81085305,0.00046825,30]
[356713582,1743007308837,-1086.31649122,0.00046825,120]
[356713583,1743007308861,-431.25222424,0.00046825,120]
[356713584,1743007308884,-1573.14950352,0.00046825,30]
[356713585,1743007308909,-937.62163201,0.00046825,120]
[356713586,1743007308932,-1378.15735327,0.00046825,30]
[356713587,1743007308956,-410.48571337,0.00046825,120]
[356713588,1743007308980,-410.55711767,0.00046825,120]
[356713589,1743007309004,-994.41682543,0.00046825,120]
[356713590,1743007309029,-440.45552413,0.00046825,120]
[356713591,1743007309055,-1248.38886939,0.00046825,120]
[356713592,1743007309203,-2302.41271288,0.00046825,120]
[356713593,1743007309229,-884.96206645,0.00046825,120]
[356713594,1743007309253,-421.01954823,0.00046825,120]
[356713595,1743007309277,-213.10385021,0.00046825,120]
[356713596,1743007309301,-1962.26553389,0.00046825,120]
[356713597,1743007309327,-235.51866425,0.00046825,120]
[356713598,1743007309351,-312.85465075,0.00046825,120]
[356713599,1743007309375,-201.10900044,0.00046825,120]
[356713600,1743007309399,-444.51683414,0.00046825,120]
[356713601,1743007309424,-231.1576413,0.00046825,30]
[356713602,1743007309448,-629.57491778,0.00046825,120]
[356713603,1743007309472,-1499.999999,0.00046825,120]
[356713604,1743007309494,-400.20804627,0.00046825,30]
[356713605,1743007309518,-150.0,0.00046825,120]
[356713606,1743007309543,-150.0,0.00046825,31]
[356713607,1743007309567,-150.0,0.00046825,31]
[356713608,1743007309596,-154.0,0.00046825,31]
[356713609,1743007309621,-244.0,0.00046825,31]
[356713610,1743007309647,-150.0,0.00046825,31]
[356713611,1743007309675,-181.0,0.00046825,31]
[356713612,1743007309701,-229.0,0.00046825,31]
[356713613,1743007309726,-352.0,0.00046825,31]
[356713614,1743007309751,-362.0,0.00046825,31]
[356713615,1743007309777,-559.0,0.00046825,31]
[356713616,1743007309803,-150.0,0.00046825,31]
[356713617,1743007309828,-279.0,0.00046825,31]
[356713618,1743007309853,-558.0,0.00046825,31]
[356713619,1743007309879,-1117.0,0.00046825,31]
[356713620,1743007309904,-2233.0,0.00046825,31]
[356713621,1743007309928,-2821.0,0.00046825,31]
[356713622,1743007309951,-4347.0,0.00046825,31]
[356713623,1743007309975,-4467.0,0.00046825,31]
[356713624,1743007310001,-6901.0,0.00046825,31]
[356713625,1743007310024,-3392.0,0.00046825,30]
[356713626,1743007310053,-155.84118801,0.00046825,120]
[356713627,1743007310079,-155.84118801,0.00046825,120]
[356713628,1743007310103,-155.84118801,0.00046825,120]
[356713629,1743007310129,-155.84118801,0.00046825,120]
[356713630,1743007310153,-155.84118801,0.00046825,120]
[356713631,1743007310178,-155.84118801,0.00046825,120]
[356713632,1743007310202,-155.84118801,0.00046825,120]
[356713633,1743007310227,-155.84118801,0.00046825,120]
[356713634,1743007310252,-155.84118801,0.00046825,120]
[356713635,1743007310277,-1493.49370421,0.00046825,120]
[356713636,1743007310300,-1999.05563944,0.00046825,120]
[356713637,1743007310325,-731.0,0.00046825,30]
[356713638,1743007310348,-2000.0,0.00046825,120]
[356713639,1743007310372,-1000.0,0.00046825,120]
[356713640,1743007310395,-1000.0,0.00046825,120]
[356713641,1743007310418,-1000.0,0.00046825,120]
[356713642,1743007310441,-1132.0,0.00046825,120]
[356713643,1743007310465,-2492.46437405,0.00046825,120]
[356713644,1743007310489,-533.31910949,0.00046825,120]
[356713645,1743007310515,-101008.75228067,0.00046825,30]
[356713646,1743007310539,-608.21515051,0.00046825,30]
[356713647,1743007310562,-600.88019032,0.00046825,120]
[356713648,1743007310590,-522.02157786,0.00046825,120]
[356713649,1743007310615,-1307.26585233,0.00046825,60]
[356713650,1743007310638,-1167.75940818,0.00046825,30]
[356713651,1743007310664,-1487.06065251,0.00046825,32]
[356713652,1743007310686,-163.6145876,0.00046825,120]
[356713653,1743007310709,-249.35480995,0.00046825,120]
[356713654,1743007310732,-498.999991,0.00046825,120]
[356713655,1743007310757,-903.98794736,0.00046825,120]
[356713656,1743007310781,-623.13621058,0.00046825,120]
[356713657,1743007310806,-30945.52,0.00046825,120]
[356713658,1743007310830,-1404.0,0.00046825,52]
[356713659,1743007310853,-201.0,0.00046825,30]
[356713660,1743007310876,-270.0,0.00046825,30]
[356713661,1743007310900,-800000.0,0.00046825,60]
[356713662,1743007466352,150.0,0.0003,30]
[356713664,1743007574002,350.0,0.0003,30]
[356713665,1743007636129,-159.3608072,0.00010959,2]
[356713666,1743007636149,-350.9249168,0.0001705,2]
[356713667,1743007636169,-476.835269,0.00021949,2]
[356713668,1743007636190,-187.93638856,0.0002235,2]
[356713669,1743007637080,-1655.42241361,0.0002235,2]
[356713670,1743007651086,-2880.59158293,0.0002235,2]
[356713671,1743007651108,-834.83451184,0.00022444,2]
[356713672,1743007651129,-418.40181814,0.00022444,2]
[356713673,1743007651152,-523.3059897,0.0002245,2]
[356713674,1743007651173,-300.0,0.00022468,2]
[356713675,1743007651192,-2500.0,0.00022469,2]
[356713676,1743007651213,-2500.0,0.00022478,2]
[356713677,1743007651234,-1305.32156016,0.00022486,2]
[356713678,1743007655775,543.80166356,0.00028,30]
[356713679,1743007757274,-1194.67843984,0.00022486,2]
[356713680,1743007757294,-834.83451184,0.00022486,2]
[356713681,1743007757315,-45.38210818,0.00022495,2]
[356713691,1743007831901,-2454.61789182,0.00022495,2]
[356713692,1743007831910,-2500.0,0.00022504,2]
[356713693,1743007831920,-2500.0,0.00022513,2]
[356713694,1743007831930,-300.0,0.00022521,2]
[356713695,1743007831940,-2500.0,0.00022522,2]
[356713696,1743007831949,-2500.0,0.0002253,2]
[356713697,1743007831959,-2500.0,0.00022539,2]
[356713698,1743007831968,-2500.0,0.00022548,2]
[356713699,1743007831977,-2500.0,0.00022551,2]
[356713700,1743007831987,-1072.91454415,0.000239,3]
[356713701,1743007831996,-500.0,0.0002395,2]
[356713702,1743007832005,-506.01590176,0.0002395,2]
[356713703,1743007832014,-500.0,0.0002396,2]
[356713704,1743007832024,-500.0,0.00024325,2]
[356713705,1743007832033,-500.0,0.00024325,2]
[356713706,1743007832042,-217.0,0.00024459,2]
[356713707,1743007832052,-1072.91454391,0.00024797,3]
[356713708,1743007832062,-500.0,0.00025225,2]
[356713709,1743007832071,-500.0,0.00025225,2]
[356713710,1743007832080,-500.0,0.00025633,2]
[356713711,1743007832089,-454.79689335,0.00025633,2]
[356713735,1743007840252,-45.20310665,0.00025633,2]
[356713736,1743007840261,-138.73271709,0.00025633,2]
[356713778,1743007845910,-361.26728291,0.00025633,2]
[356713779,1743007845920,-500.0,0.00025633,2]
[356713780,1743007845929,-385.28418589,0.00025633,2]
[356713781,1743007845938,-1072.91454391,0.00025693,4]
[356713782,1743007845948,-1072.91454391,0.0002659,4]
[356713783,1743007845957,-1072.91454391,0.00027486,4]
[356713784,1743007845967,-833.10259743,0.00028184,2]
[356713785,1743007845977,-1072.91454391,0.00028383,5]
[356713786,1743007845986,-1072.91454391,0.00029279,5]
[356713787,1743007845995,-1000.0,0.00029804,5]
[356713788,1743007846005,-1000.0,0.00029804,5]
[356713789,1743007846014,-1072.91454391,0.00030176,5]
[356713790,1743007846023,-1000.0,0.00030704,2]
[356713791,1743007846033,-1000.0,0.00030704,5]
[356713792,1743007846042,-1072.91454391,0.00031072,5]
[356713793,1743007846051,-1000.0,0.00031113,5]
[356713794,1743007846061,-477.14616757,0.00031113,5]
[356713795,1743007846071,-1000.0,0.00031113,5]
[356713797,1743007846080,-1000.0,0.00031113,5]
[356713799,1743007846089,-1072.91454391,0.00031969,6]
[356713801,1743007846099,-1000.0,0.00032111,5]
[356713803,1743007846108,-228.94454832,0.00032529,2]
[356713806,1743007846117,-1072.91454391,0.00032866,6]
[356713808,1743007846127,-476.835269,0.00032924,2]
[356713810,1743007846136,-500.0,0.00032999,7]
[356713811,1743007846146,-395.64025438,0.00032999,7]
[356713812,1743007846155,-2500.0,0.00033,2]
[356713813,1743007846164,-716.19952586,0.00033,30]
[356713814,1743007846174,-500.0,0.00033,30]
[356713815,1743007846183,-500.0,0.00033,30]
[356713816,1743007846192,-38315.81969883,0.00033,2]
[356713817,1743007846203,-500.0,0.00033509,5]
[356713818,1743007846213,-1072.91454391,0.00033762,6]
[356713819,1743007846222,-10000.0,0.00034,30]
[356713820,1743007846235,-834.83451184,0.00034,30]
[356713821,1743007846245,-1072.91454391,0.00034659,7]
[356713822,1743007846255,-163.248,0.00034682,39]
[356713823,1743007846264,-5000.0,0.00035,120]
[356713824,1743007846274,-1072.91454391,0.00035555,7]
[356713825,1743007846283,-2242.07104128,0.0003569,2]
[356713826,1743007846292,-151.0,0.000357,18]
[356713827,1743007846302,-151.0,0.000357,11]
[356713828,1743007846312,-151.0,0.000357,17]
[356713829,1743007846321,-173.9623762,0.000357,2]
[356713830,1743007846331,-500.0,0.00035773,5]
[356713831,1743007846341,-5189.49971313,0.0003578,3]
[356713832,1743007846353,-12839.76545184,0.0003578,3]
[356713835,1743008078169,1187.0,0.0003,30]
[356713836,1743008139961,840.63141105,0.0003,120]
[356713837,1743008369159,500.0,0.0003,120]
[356713838,1743008472986,265.03394442,0.0003,30]
[356713839,1743008755131,-160.0,0.00021341,2]
[356713840,1743008755154,-111.8,0.00021356,2]
[356713842,1743008828144,-1083.0542458,0.00021356,2]
[356713843,1743008828168,-186.23232526,0.00021386,2]
[356713844,1743008843162,-418.40181814,0.00021378,2]
[356713845,1743008843183,-34.39072412,0.00021387,2]
[356713846,1743008857152,2466.0,0.0003,30]
[356713890,1743009032107,-300.0,0.00020689,2]
[356713891,1743009032117,-24900.0,0.0002069,2]
[356713892,1743009032134,-160.0,0.0002138,2]
[356713893,1743009032145,-4569.02411167,0.00021387,2]
[356713894,1743009032154,-457.89274104,0.000214,2]
[356713895,1743009032163,-500.0,0.0002148,2]
[356713896,1743009032173,-4098.84766617,0.00021486,2]
[356713898,1743009032182,-500.0,0.000215,2]
[356713900,1743009032192,-500.0,0.000215,2]
[356713902,1743009032202,-662.216,0.000215,2]
[356713904,1743009032212,-500.0,0.00022033,2]
[356713905,1743009032221,-500.0,0.00022033,2]
[356713906,1743009032234,-500.0,0.00022033,2]
[356713907,1743009032244,-502.02363499,0.00022033,2]
[356713908,1743009032253,-500.0,0.00022033,2]
[356713909,1743009032262,-500.68207043,0.00022033,2]
[356713910,1743009032272,-368.15464723,0.00022033,2]
[356713912,1743009032281,-500.0,0.00022033,2]
[356713913,1743009032291,-507.37884348,0.00022033,2]
[356713914,1743009032301,-500.0,0.00022033,2]
[356713915,1743009032310,-500.0,0.00022033,2]
[356713916,1743009032319,-500.0,0.00022033,2]
[356713917,1743009032329,-500.0,0.00022033,2]
[356713918,1743009032339,-500.0,0.00022033,2]
[356713919,1743009032348,-598.08821256,0.000229,3]
[356713920,1743009032358,-598.08821252,0.00023831,3]
[356713921,1743009032367,-298.381018,0.0002448,2]
[356713922,1743009032376,-598.08821252,0.00024762,3]
[356713923,1743009032387,-244.22334343,0.00024827,2]
[356713924,1743009032396,-834.83451184,0.00025374,2]
[356713925,1743009032405,-457.89274098,0.00025443,2]
[356713926,1743009032415,-598.08821252,0.00025693,4]
[356713927,1743009032424,-598.08821252,0.00026624,4]
[356713928,1743009032434,-1000.0,0.00026979,2]
[356713929,1743009032444,-500.0,0.00027513,5]
[356713930,1743009032454,-1000.0,0.00027513,5]
[356713931,1743009032463,-598.08821252,0.00027555,4]
[356713932,1743009032473,-598.08821252,0.00028486,5]
[356713933,1743009032483,-598.08821252,0.00029417,5]
[356713934,1743009032623,-457.89274098,0.00029486,2]
[356713935,1743009032639,-598.08821252,0.00030348,5]
[356713936,1743009032649,-262.03215103,0.00030645,2]
[356713937,1743009032659,-227.47028704,0.00030645,2]
[356713938,1743009032668,-598.08821252,0.00031279,6]
[356713939,1743009032678,-598.08821252,0.0003221,6]
[356713940,1743009032687,-464.49233947,0.00032767,5]
[356713941,1743009032698,-500.98596614,0.00032767,5]
[356713942,1743009032708,-500.0,0.00032767,5]
[356713943,1743009032717,-500.0,0.00032767,5]
[356713944,1743009032727,-502.31118616,0.00032767,5]
[356713945,1743009032737,-500.0,0.00032767,5]
[356713946,1743009032746,-500.0,0.00032767,2]
[356713947,1743009032755,-598.08821252,0.00033141,6]
[356713948,1743009032764,-457.89274098,0.00033529,2]
[356713949,1743009032774,-598.08821252,0.00034072,6]
[356713950,1743009032783,-163.248,0.00034808,40]
[356713951,1743009032792,-1047.6386209,0.00034813,4]
[356713952,1743009032801,-2715.857336,0.00035,2]
[356713953,1743009032811,-598.08821252,0.00035003,7]
[356713954,1743009032820,-396.12944399,0.00035217,5]
[356713955,1743009032829,-1955.17441993,0.00035589,2]
[356713956,1743009032839,-293.66126773,0.00035669,2]
[356713957,1743009032848,-302.0,0.00035669,2]
[356713958,1743009032858,-600.0,0.00035669,2]
[356713959,1743009032867,-293.6612677,0.00035672,2]
[356713960,1743009032876,-293.6612677,0.00035675,2]
[356713961,1743009032885,-293.6612677,0.00035677,2]
[356713962,1743009032896,-500.0,0.00035679,15]
[356713963,1743009032905,-188.94093717,0.00035679,15]
[356713964,1743009032915,-415.93377589,0.00035679,15]
[356713965,1743009032924,-293.6612677,0.0003568,2]
[356713966,1743009032933,-977.42485741,0.0003568,2]
[356713967,1743009032942,-2400.75300222,0.0003568,2]
[356713968,1743009032952,-701398.388652,0.0003568,3]
[356713969,1743009032962,-418.40181814,0.0003568,3]
[356713970,1743009032971,-223943.93908144,0.0003569,2]
[356713971,1743009032990,-8654.0848838,0.0003569,2]
[356713980,1743009037930,-2724.46620968,0.0003569,2]
[356713981,1743009037984,-15405.61759978,0.0003569,2]
[356713982,1743009037996,-5922.99779231,0.0003569,2]
[356713983,1743009038007,-569.30980071,0.0003569,2]
[356713984,1743009038019,-1078.09412299,0.0003569,2]
[356713993,1743009046219,-346.68203741,0.00031267,2]
[356713994,1743009046273,-53.31796259,0.00031267,2]
[356713995,1743009046282,-400.0,0.00034267,2]
[356713996,1743009046291,-63701.49050929,0.0003569,2]
[356713997,1743009046301,-500.0,0.00035773,5]
[356713998,1743009046311,-834.83451184,0.0003578,3]
[356713999,1743009046320,-151.0,0.000358,12]
[356714001,1743009046329,-151.0,0.000358,10]
[356714002,1743009046339,-151.0,0.000358,19]
[356714004,1743009046348,-151.0,0.000358,18]
[356714006,1743009046358,-243.73395437,0.0003588,3]
[356714007,1743009046367,-151.0,0.00035888,2]
[356714009,1743009046377,-500.0,0.00035889,15]
[356714011,1743009046386,-500.0,0.00035889,5]
[356714012,1743009046396,-500.0,0.00035889,7]
[356714013,1743009046406,-500.0,0.0003589,2]
[356714014,1743009046417,-151.0,0.000359,12]
[356714015,1743009046426,-598.08821252,0.00035934,7]
[356714017,1743009046436,-500.0,0.00035973,5]
[356714019,1743009046445,-500.0,0.00035973,5]
[356714021,1743009046455,-500.0,0.00035973,5]
[356714023,1743009046465,-500.0,0.00035973,5]
[356714025,1743009046475,-490.0,0.00035973,5]
[356714027,1743009046484,-89664.0,0.00036,30]
[356714029,1743009046493,-300.0,0.00036,120]
[356714031,1743009046503,-263.42242883,0.00036,120]
[356714032,1743009046512,-834.83451184,0.00036,30]
[356714034,1743009046521,-151.0,0.00036,14]
[356714036,1743009046531,-151.0,0.00036,14]
[356714038,1743009046540,-418.40181814,0.00036,30]
[356714041,1743009046550,-151.0,0.00036,14]
[356714042,1743009046559,-151.0,0.00036,14]
[356714044,1743009046569,-1873.62517336,0.000362,98]
[356714046,1743009046578,-1873.62517332,0.000362,98]
[356714049,1743009046588,-1873.62517332,0.000362,98]
[356714050,1743009046597,-598.08821252,0.00036866,7]
[356714051,1743009046607,-1500.0,0.00036998,5]
[356714052,1743009046616,-310.863,0.00037267,2]
[356714053,1743009046625,-1500.0,0.00037532,5]
[356714054,1743009046634,-457.89274098,0.00037571,2]
[356714055,1743009046643,-598.08821252,0.00037797,8]
[356714056,1743009046653,-300.0,0.00038,120]
[356714057,1743009046662,-1000.0,0.00038246,5]
[356714058,1743009046672,-1000.0,0.00038246,5]
[356714059,1743009046681,-1000.0,0.00038246,5]
[356714060,1743009046691,-1000.0,0.00038246,2]
[356714061,1743009046700,-598.08821252,0.00038728,8]
[356714062,1743009046710,-500.0,0.000388,10]
[356714063,1743009046720,-500.0,0.000388,10]
[356714064,1743009046730,-500.0,0.000388,10]
[356714065,1743009046740,-500.0,0.000388,10]
[356714066,1743009046750,-20000.0,0.00039,14]
[356714067,1743009046759,-598.08821252,0.00039659,8]
[356714068,1743009046769,-300.0,0.00039823,5]
[356714069,1743009046778,-759.51924934,0.0003989,120]
[356714070,1743009046787,-164.63621109,0.0004,120]
[356714071,1743009046797,-300.0,0.0004,120]
[356714072,1743009046806,-2268.62004267,0.0004,120]
[356714073,1743009046816,-1012.16413612,0.0004,120]
[356714074,1743009046825,-1952.37531082,0.0004,120]
[356714075,1743009046835,-501.02172264,0.0004,120]
[356714076,1743009046845,-180.0,0.0004,30]
[356714077,1743009046854,-200.0,0.0004,120]
[356714078,1743009046864,-418.40181814,0.0004,120]
[356714079,1743009046873,-598.08821252,0.0004059,8]
[356714080,1743009046883,-1873.62517332,0.00040733,120]
[356714081,1743009046892,-1955.17441992,0.00041155,2]
[356714082,1743009046902,-500.0,0.00041211,2]
[356714083,1743009046911,-394.07392138,0.00041252,10]
[356714084,1743009046921,-600.0,0.0004128,2]
[356714085,1743009046930,-1000.0,0.00041452,7]
[356714086,1743009046940,-1000.0,0.00041452,10]
[356714087,1743009046950,-598.08821252,0.00041521,9]
[356714088,1743009046960,-457.89274098,0.00041614,28]
[356714089,1743009046969,-600.0,0.0004171,2]
[356714090,1743009046979,-150.605252,0.00041843,2]
[356714091,1743009046991,-24185.0,0.000419,30]
[356714092,1743009047002,-28394.45116603,0.000419,7]
[356714093,1743009047013,-151.0,0.000419,120]
[356714094,1743009047023,-151.0,0.000419,120]
[356714095,1743009047032,-208.307198,0.000419,120]
[356714096,1743009047042,-151.0,0.000419,120]
[356714097,1743009047052,-834.83451184,0.000419,7]
[356714098,1743009047061,-834.83451184,0.000419,30]
[356714099,1743009047071,-206.606614,0.000419,120]
[356714100,1743009047081,-173.048035,0.000419,120]
[356714101,1743009047091,-151.0,0.000419,30]
[356714102,1743009047100,-1828.552281,0.000419,2]
[356714103,1743009047110,-1828.552281,0.000419,2]
[356714104,1743009047120,-151.0,0.000419,120]
[356714105,1743009047133,-151.0,0.000419,120]
[356714106,1743009047143,-166.1112,0.000419,30]
[356714107,1743009047154,-418.40181814,0.000419,7]
[356714108,1743009047164,-151.0,0.000419,120]
[356714109,1743009047175,-151.0,0.000419,120]
[356714110,1743009047186,-151.0,0.000419,120]
[356714111,1743009047197,-500.0,0.00041973,10]
[356714112,1743009047209,-500.0,0.00041973,10]
[356714113,1743009047219,-507.96341946,0.00041973,10]
[356714114,1743009047230,-500.0,0.00041973,10]
[356714115,1743009047240,-15182.29326931,0.00041986,14]
[356714116,1743009047250,-30000.0,0.00042,3]
[356714117,1743009047260,-502.06361202,0.00042,120]
[356714118,1743009047269,-2580.0,0.00042,120]
[356714119,1743009047279,-30000.0,0.00042,14]
[356714120,1743009047289,-300.0,0.00042,120]
[356714121,1743009047298,-2612.45644399,0.00042,30]
[356714122,1743009047308,-1177.41901028,0.00042,120]
[356714123,1743009047318,-151.0,0.00042,120]
[356714124,1743009047327,-151.0,0.00042,120]